bitfinex/quotes_ETHUSD_20250602
["timestamp","ask_amount","ask_price","bid_price","bid_amount"]
[1748842868853,13.72852061,2489.2,2489.1,1.0]
[1748842869057,14.50541298,2489.2,2489.1,1.0]
[1748842869243,10.41041298,2489.2,2489.1,1.0]
[1748842869445,14.50541298,2489.2,2489.1,1.0]
[1748842869845,8.0,2489.2,2489.1,1.0]
[1748842871251,5.24110071,2489.7,2489.2,0.7605]
[1748842871439,0.38394822,2489.8,2489.2,2.41034819]
[1748842871639,5.24102554,2489.8,2489.3,0.7605]
[1748842871839,6.50492923,2489.7,2489.3,0.7605]
[1748842872046,2.40992923,2489.7,2489.3,0.7605]
[1748842872251,10.40992923,2489.7,2489.4,0.31708482]
[1748842872472,2.40992923,2489.7,2489.4,0.31708482]
[1748842872669,2.41003587,2489.6,2489.4,0.31708482]
[1748842872875,2.41003587,2489.6,2489.3,0.7605]
[1748842873186,10.40998106,2489.7,2489.3,0.7605]
[1748842873682,2.41003758,2489.6,2489.3,0.7605]
[1748842873877,10.40995605,2489.7,2489.3,0.7605]
[1748842874050,13.24110167,2489.7,2489.3,1.17759111]
[1748842874254,2.41005221,2489.6,2489.3,1.17759111]
[1748842874753,17.33508449,2489.7,2489.3,1.17759111]
[1748842875155,13.24108449,2489.7,2489.3,1.17759111]
[1748842876372,2.41003702,2489.6,2489.3,1.17759111]
[1748842876671,13.24112192,2489.7,2489.3,1.17759111]
[1748842877287,13.24112192,2489.7,2489.4,0.35879935]
[1748842877872,2.41003492,2489.6,2489.3,0.7605]
[1748842878083,2.83114562,2489.5,2489.3,0.7605]
[1748842878792,2.41021932,2489.4,2489.3,0.7605]
[1748842878970,5.24129074,2489.5,2489.3,0.7605]
[1748842879987,2.83114562,2489.5,2489.3,0.7605]
[1748842880296,2.83114562,2489.5,2489.3,1.1775951]
[1748842880599,8.0,2489.7,2489.3,1.1775951]
[1748842880804,10.83114562,2489.7,2489.3,0.7605]
[1748842880960,13.24108467,2489.7,2489.3,0.7605]
[1748842881361,8.0,2489.7,2489.3,0.7605]
[1748842881561,10.83114562,2489.7,2489.3,0.7605]
[1748842882294,13.24108255,2489.7,2489.3,0.7605]
[1748842885617,2.41002791,2489.6,2489.3,0.7605]
[1748842886117,13.24110135,2489.7,2489.3,0.7605]
[1748842886705,4.093,2489.6,2489.3,0.7605]
[1748842887106,4.093,2489.6,2489.3,3.17081446]
[1748842890118,10.83114562,2489.7,2489.3,3.17081446]
[1748842890287,4.093,2489.6,2489.3,3.17081446]
[1748842891838,2.83114562,2489.5,2489.3,0.7605]
[1748842893195,2.83114562,2489.5,2489.3,3.17079344]
[1748842893796,4.093,2489.6,2489.3,3.17079344]
[1748842896236,4.093,2489.6,2489.4,3.17679777]
[1748842900538,6.92414562,2489.6,2489.4,3.17679777]
[1748842903414,6.92414562,2489.6,2489.4,0.7666]
[1748842903927,6.92414562,2489.6,2489.4,3.17681841]
[1748842904129,6.92414562,2489.6,2489.4,0.7666]
[1748842905332,6.92414562,2489.6,2489.4,3.1768155]
[1748842905665,6.92414562,2489.6,2489.4,0.7666]
[1748842906172,6.92414562,2489.6,2489.4,3.17681184]
[1748842908275,6.92414562,2489.6,2489.4,0.7666]
[1748842908485,0.69241456,2489.5,2489.2,0.7851]
[1748842908781,6.92414562,2489.6,2489.2,3.1954434]
[1748842909832,6.92414562,2489.6,2489.3,2.41031015]
[1748842911698,2.40983686,2489.8,2489.4,2.41021038]
[1748842911699,2.83114562,2489.8,2489.4,2.41021038]
[1748842911879,4.47722185,2489.7,2489.3,2.41028103]
[1748842912030,4.092,2489.7,2489.3,2.41028103]
[1748842912683,2.83114562,2489.6,2489.3,2.41028103]
[1748842912837,10.4096886,2490.0,2489.2,0.7851]
[1748842913038,15.30837462,2489.9,2489.2,0.7851]
[1748842913252,0.385229,2489.8,2489.4,2.41016084]
[1748842913536,0.385229,2489.7,2489.4,2.41016084]
[1748842913767,14.92314562,2489.9,2489.4,2.41016084]
[1748842914082,0.38523123,2489.8,2489.5,0.8182]
[1748842914281,0.38523123,2489.7,2489.5,0.8182]
[1748842914435,14.92314562,2489.9,2489.5,0.8182]
[1748842914637,0.38518718,2489.8,2489.5,0.8182]
[1748842914858,0.38518718,2489.7,2489.5,0.8182]
[1748842915060,2.83114562,2490.0,2489.6,2.4100257]
[1748842915259,4.4772317,2489.9,2489.5,3.22823919]
[1748842915438,4.092,2489.9,2489.5,3.22823919]
[1748842915639,4.092,2489.9,2489.6,2.41000855]
[1748842915954,4.092,2489.9,2489.5,3.22825246]
[1748842916869,2.83114562,2489.8,2489.5,3.22825246]
[1748842917071,2.83114562,2489.6,2489.3,0.7697]
[1748842917641,2.83114562,2489.6,2489.2,2.41039775]
[1748842918170,2.83114562,2489.6,2489.1,4.18017018]
[1748842918372,5.2411913,2489.6,2489.1,4.18017018]
[1748842918881,2.83114562,2489.6,2489.1,1.7697]
[1748842919077,2.83114562,2489.2,2489.1,1.0]
[1748842919284,5.2415586,2489.2,2489.1,1.0]
[1748842919466,13.62643173,2489.2,2489.1,1.0]
[1748842919671,15.23011296,2489.2,2489.1,1.0]
[1748842921284,8.0,2489.2,2489.1,1.0]
[1748842921585,14.50241298,2489.2,2489.1,1.0]
[1748842921785,12.092,2489.2,2489.1,1.0]
[1748842922085,14.50241298,2489.2,2489.1,1.0]
[1748842923359,17.3335586,2489.2,2489.1,1.0]
[1748842925073,14.92314562,2489.2,2489.1,1.0]
[1748842925385,17.3335586,2489.2,2489.1,1.0]
[1748842927591,8.0,2489.2,2489.1,1.0]
[1748842927886,12.092,2489.2,2489.1,1.0]
[1748842929987,17.3335586,2489.2,2489.1,1.0]
[1748842930158,19.30793845,2489.2,2489.1,1.0]
[1748842930359,16.89752547,2489.2,2489.1,1.0]
[1748842930861,19.30793845,2489.2,2489.1,1.0]
[1748842932262,19.42423845,2489.2,2489.1,0.82171627]
[1748842932461,23.18920016,2489.2,2489.1,0.82171627]
[1748842932770,20.35805454,2489.2,2489.1,0.82171627]
[1748842934579,16.26605454,2489.2,2489.1,0.82171627]
[1748842934771,20.35805454,2489.2,2489.1,0.82171627]
[1748842935396,20.35757459,2489.2,2489.1,0.82171627]
[1748842936684,15.71557459,2489.2,2489.1,0.82171627]
[1748842937159,15.21593845,2489.2,2489.1,0.82171627]
[1748842937358,19.30793845,2489.2,2489.1,0.82171627]
[1748842937677,2.62410275,2489.6,2489.1,0.82171627]
[1748842937678,2.41012251,2489.5,2489.1,0.82171627]
[1748842937878,6.41647746,2489.6,2489.1,0.82171627]
[1748842938095,10.41027785,2489.4,2489.1,0.82171627]
[1748842938500,13.24142347,2489.4,2489.1,0.82171627]
[1748842939527,8.0,2489.2,2489.1,0.82171627]
[1748842939819,10.41017406,2489.5,2489.1,0.82171627]
[1748842940118,8.0,2489.2,2489.1,0.82171627]
[1748842942308,5.24136945,2489.4,2489.1,0.82171627]
[1748842942605,8.0,2489.3,2489.1,0.82171627]
[1748842942770,12.092,2489.3,2489.1,0.82171627]
[1748842943208,8.0,2489.5,2489.1,3.23221465]
[1748842943395,8.0,2489.5,2489.1,0.82171627]
[1748842943593,4.092,2489.4,2489.1,0.82171627]
[1748842944186,4.092,2489.4,2489.1,3.23220453]
[1748842944385,4.092,2489.4,2489.1,0.82171627]
[1748842945523,6.50222654,2489.4,2489.1,0.82171627]
[1748842945728,6.92314562,2489.4,2489.1,0.82171627]
[1748842947294,9.33336844,2489.4,2489.1,0.82171627]
[1748842947491,2.41033898,2489.3,2489.1,0.82171627]
[1748842947712,10.41033898,2489.3,2489.1,0.82171627]
[1748842948019,2.41041298,2489.2,2489.1,0.82171627]
[1748842948208,5.2415586,2489.2,2489.1,0.82171627]
[1748842948607,13.2415586,2489.2,2489.1,0.82171627]
[1748842948900,16.22501141,2489.2,2489.1,0.82171627]
[1748842950545,20.31601141,2489.2,2489.1,0.82171627]
[1748842951142,20.69970553,2489.2,2489.1,0.82171627]
[1748842952497,20.31601141,2489.2,2489.1,0.82171627]
[1748842952697,20.69961597,2489.2,2489.1,0.82171627]
[1748842953400,20.69961847,2489.2,2489.1,0.82171627]
[1748842954230,17.86847285,2489.2,2489.1,0.82171627]
[1748842954455,8.0,2489.2,2489.1,0.82171627]
[1748842954631,4.091,2489.3,2489.1,1.60361627]
[1748842954806,4.091,2489.3,2489.1,4.01410834]
[1748842955194,4.091,2489.3,2489.1,1.60361627]
[1748842956741,4.091,2489.3,2489.2,2.41041298]
[1748842956957,4.091,2489.3,2489.1,4.01407635]
[1748842957239,4.091,2489.4,2489.2,2.41041298]
[1748842957601,2.83114562,2489.5,2489.2,2.41041298]
[1748842957802,4.091,2489.5,2489.1,1.60361627]
[1748842958404,4.091,2489.5,2489.1,4.01412518]
[1748842958740,6.92214562,2489.5,2489.1,1.60361627]
[1748842959141,6.92214562,2489.5,2489.1,4.01412518]
[1748842959304,6.92214562,2489.5,2489.1,1.60361627]
[1748842959509,6.92214562,2489.5,2489.1,4.01412499]
[1748842959739,6.92214562,2489.5,2489.1,1.60361627]
[1748842960051,6.92214562,2489.5,2489.1,4.0141178]
[1748842960949,6.92214562,2489.5,2489.2,2.41039027]
[1748842961282,6.92214562,2489.5,2489.1,4.01409824]
[1748842963060,13.24112771,2489.7,2489.2,2.41036252]
[1748842963267,4.091,2489.6,2489.2,2.41036252]
[1748842963439,4.091,2489.6,2489.1,4.01406724]
[1748842963640,6.50104024,2489.6,2489.1,4.01406724]
[1748842963865,2.83114562,2489.5,2489.1,4.01406724]
[1748842965188,5.24127997,2489.5,2489.1,1.60361627]
[1748842965678,2.83114562,2489.5,2489.1,1.60361627]
[1748842966072,2.83114562,2489.5,2489.1,4.0141205]
[1748842966581,0.59606866,2490.2,2489.2,0.8209]
[1748842966885,8.0,2489.7,2489.5,0.8209]
[1748842968164,8.0,2489.8,2489.5,3.23100038]
[1748842968376,2.29016696,2490.5,2490.0,2.40958814]
[1748842968580,0.61304087,2490.4,2489.8,0.816]
[1748842968745,0.38402417,2490.6,2489.9,0.7662]
[1748842969089,4.091,2490.6,2490.4,2.4092511]
[1748842969246,4.091,2490.6,2490.4,2.40919786]
[1748842969442,14.24106244,2490.9,2490.3,3.17550175]
[1748842969759,4.091,2490.7,2490.3,0.7662]
[1748842970089,4.091,2490.7,2490.3,3.17552413]
[1748842970764,4.091,2490.7,2490.3,0.7662]
[1748842971167,4.09,2490.7,2490.3,3.17554045]
[1748842971491,4.09,2490.7,2489.8,2.83114562]
[1748842971492,4.09,2490.8,2490.6,0.8079]
[1748842971697,1.00112605,2490.9,2490.6,0.8079]
[1748842971998,9.00112605,2490.9,2490.6,0.8079]
[1748842974247,13.09012605,2490.9,2490.7,2.40895644]
[1748842974450,13.09012605,2490.9,2490.6,3.21692805]
[1748842974689,8.01,2490.9,2490.7,2.40896017]
[1748842974991,8.01,2490.9,2490.7,2.40891033]
[1748842975902,8.01,2490.9,2490.6,1.37050592]
[1748842977304,8.01,2490.9,2490.6,0.8079]
[1748842977804,12.099,2490.9,2490.6,0.8079]
[1748842978503,2.40887819,2490.8,2490.6,0.8079]
[1748842978801,12.099,2490.9,2490.4,2.40919562]
[1748842979966,14.50777045,2490.9,2490.4,2.40919562]
[1748842980722,14.50777045,2490.9,2490.3,3.16029996]
[1748842981308,14.50777045,2490.9,2490.4,2.40922218]
[1748842981816,12.099,2490.9,2490.3,3.16030615]
[1748842981979,14.50782717,2490.9,2490.3,3.16030615]
[1748842982306,12.099,2490.9,2490.4,2.409196]
[1748842983878,14.50777257,2490.9,2490.4,2.409196]
[1748842985814,12.099,2490.9,2490.4,2.409196]
[1748842986319,12.099,2490.9,2490.4,2.40925152]
[1748842987487,12.099,2490.9,2490.3,3.16029199]
[1748842987687,2.83114562,2490.6,2490.3,0.751]
[1748842988088,5.24026309,2490.6,2490.0,3.16043855]
[1748842988384,2.83114562,2490.4,2490.0,3.1603722]
[1748842988784,2.83114562,2490.4,2490.0,0.7508]
[1748842989213,2.83114562,2490.4,2490.0,3.16043442]
[1748842989921,4.088,2490.5,2490.0,3.16043442]
[1748842990914,6.49716544,2490.5,2490.0,3.16043442]
[1748842992059,7.68252599,2490.5,2490.0,0.7508]
[1748842992205,2.40925181,2490.4,2490.0,0.7508]
[1748842992740,5.24039743,2490.4,2490.0,0.7508]
[1748842992937,2.83114562,2490.4,2490.0,0.7508]
[1748842993233,7.68256273,2490.5,2490.0,3.16043709]
[1748842994841,4.088,2490.4,2490.0,3.16043709]
[1748842995199,8.0,2490.5,2490.0,3.16043709]
[1748842995400,12.088,2490.5,2490.0,3.16043709]
[1748842996341,1.75551303,2490.9,2490.1,0.7582]
[1748842996665,4.098,2490.9,2490.5,2.40915296]
[1748842996808,8.0,2490.8,2490.5,2.40915296]
[1748842997009,4.098,2490.9,2490.5,2.40915296]
[1748842997420,0.01,2490.9,2490.8,2.40886462]
[1748842997632,0.01,2490.9,2490.8,3.21776462]
[1748842998351,0.01,2490.9,2490.8,3.78043722]
[1748842998561,0.01,2490.9,2490.8,3.21776462]
[1748843002654,0.01,2490.9,2490.6,0.7824]
[1748843002859,0.01,2490.9,2490.6,3.19145512]
[1748843003857,2.83114562,2490.7,2490.2,2.4093812]
[1748843004056,2.94744562,2490.7,2490.3,2.40934522]
[1748843004233,2.94744562,2490.7,2490.2,2.40940055]
[1748843004435,2.94744562,2490.7,2490.3,2.4093408]
[1748843004622,2.94744562,2490.7,2490.2,2.40939833]
[1748843004822,2.94744562,2490.7,2490.3,2.40932712]
[1748843005024,2.94744562,2490.7,2490.1,2.40954148]
[1748843005318,2.94744562,2490.7,2490.2,2.40937951]
[1748843005524,2.40911946,2490.6,2490.0,2.40957624]
[1748843005833,2.40911946,2490.6,2490.1,2.40952873]
[1748843006040,6.30176498,2490.7,2490.1,2.40952873]
[1748843006653,6.30176498,2490.7,2490.2,2.40943441]
[1748843007164,3.89278272,2490.7,2490.1,2.40951209]
[1748843007659,3.89278272,2490.7,2490.2,2.40944502]
[1748843008026,0.1163,2490.7,2490.3,2.40931011]
[1748843008223,4.087,2490.8,2490.4,2.40915867]
[1748843008438,8.0,2490.8,2490.5,2.40908907]
[1748843009038,8.0,2490.8,2490.4,2.40920512]
[1748843009364,10.83114562,2490.8,2490.2,2.40941059]
[1748843009664,1.74532334,2490.7,2490.2,2.40941059]
[1748843010048,10.83114562,2490.8,2490.1,0.7811]
[1748843010364,10.83114562,2490.8,2490.3,2.40929668]
[1748843010768,13.24001395,2490.8,2490.3,2.40929668]
[1748843011762,13.2400246,2490.8,2490.2,2.40934958]
[1748843011963,2.83114562,2490.6,2490.1,3.19059386]
[1748843012163,0.64031433,2490.5,2490.1,2.40949386]
[1748843012461,3.04947378,2490.5,2490.0,2.40958027]
[1748843012642,0.64031433,2490.5,2490.0,2.40963855]
[1748843012843,0.1163,2490.5,2490.0,2.40963855]
[1748843013247,0.1163,2490.5,2490.1,2.409527]
[1748843016872,2.52545622,2490.5,2490.0,2.40958794]
[1748843017167,2.52545622,2490.5,2489.9,3.16547323]
[1748843017382,2.52545622,2490.5,2489.8,0.7841]
[1748843017383,8.0,2490.3,2489.8,0.7841]
[1748843017539,8.0,2490.3,2489.9,2.40973096]
[1748843017939,8.0,2490.3,2489.8,3.19388804]
[1748843018330,2.40945554,2490.2,2489.5,0.7841]
[1748843018536,0.1163,2490.1,2489.7,2.40986005]
[1748843018735,2.52586965,2490.1,2489.6,2.40997881]
[1748843019530,0.1163,2490.1,2489.6,2.40997881]
[1748843019759,2.52584757,2490.1,2489.6,2.40997881]
[1748843020336,5.2407919,2490.0,2489.5,3.19417106]
[1748843020554,5.2407919,2490.0,2489.5,2.41007106]
[1748843021760,2.40973565,2489.9,2489.4,2.41018553]
[1748843021965,2.83114562,2490.0,2489.4,2.41018553]
[1748843022159,5.24084767,2490.0,2489.4,2.41018553]
[1748843022778,6.49679847,2489.9,2489.4,2.41020043]
[1748843022951,6.49679847,2489.9,2489.3,3.20766236]
[1748843024248,6.49679847,2489.9,2489.4,2.4101914]
[1748843024448,4.087,2489.9,2489.4,2.4101914]
[1748843024669,4.087,2489.9,2489.5,2.41007292]
[1748843025281,3.67816178,2490.0,2489.6,2.40998958]
[1748843025479,4.088,2489.9,2489.6,2.40998958]
[1748843026256,4.088,2489.9,2489.7,2.40992073]
[1748843026454,4.088,2489.9,2489.5,2.41011517]
[1748843026455,4.088,2489.9,2489.6,2.4099876]
[1748843026657,4.088,2489.9,2489.7,2.40991506]
[1748843027452,4.088,2489.9,2489.6,2.40998157]
[1748843028248,4.088,2489.9,2489.7,2.40992342]
[1748843028447,0.1163,2490.4,2489.8,3.24296769]
[1748843028641,8.0,2490.2,2489.8,3.24299949]
[1748843028846,8.0,2490.2,2489.9,2.40969209]
[1748843029782,8.0,2490.2,2489.8,3.24299146]
[1748843029953,8.0,2490.2,2489.8,3.24301218]
[1748843031791,8.0,2490.2,2489.9,2.40972858]
[1748843032265,11.87085736,2490.2,2489.6,3.22877244]
[1748843032663,11.87085736,2490.2,2489.7,2.40992834]
[1748843032849,11.87085736,2490.2,2489.8,2.40979889]
[1748843032850,9.46135969,2490.2,2489.8,2.40979889]
[1748843033552,8.0,2490.2,2489.9,2.40970449]
[1748843034190,8.0,2490.2,2489.8,2.40978385]
[1748843034995,8.0,2490.2,2489.7,2.409877]
[1748843035192,10.40947587,2490.2,2489.7,2.409877]
[1748843035378,8.0,2490.2,2489.7,2.409877]
[1748843036534,8.0,2490.2,2489.8,2.40981738]
[1748843036830,8.0,2490.2,2489.6,0.8188]
[1748843037031,8.0,2490.2,2489.9,2.40966886]
[1748843037542,8.0,2490.2,2489.8,2.40979296]
[1748843039325,8.0,2490.2,2489.9,2.40969719]
[1748843039893,8.0,2490.2,2489.8,2.40983211]
[1748843040095,8.0,2490.2,2489.9,2.40972596]
[1748843041327,8.0,2490.2,2489.8,2.40978141]
[1748843041827,10.40953225,2490.2,2489.6,3.22875805]
[1748843041991,0.1163,2490.1,2489.7,2.4099137]
[1748843042490,5.35699304,2490.1,2489.5,2.41005455]
[1748843042834,2.40971315,2490.0,2489.5,2.41005455]
[1748843043510,7.34246529,2490.1,2489.5,2.41005455]
[1748843044134,7.34242373,2490.1,2489.6,2.40995686]
[1748843045051,2.40974169,2489.9,2489.4,2.41015636]
[1748843045246,0.1163,2489.8,2489.5,2.41012077]
[1748843046240,0.1163,2489.8,2489.4,2.41016516]
[1748843046424,0.1163,2489.8,2489.5,2.41011284]
[1748843046936,0.1163,2489.8,2489.4,2.41013171]
[1748843047106,0.1163,2489.8,2489.5,2.41011949]
[1748843047306,0.1163,2489.8,2489.4,2.41017129]
[1748843048262,0.1163,2489.8,2489.3,2.41028033]
[1748843048560,0.1163,2489.8,2489.4,2.41021238]
[1748843048745,0.1163,2489.8,2489.2,2.41037882]
[1748843049046,0.1163,2489.8,2489.4,2.41021432]
[1748843049953,0.1163,2489.8,2489.5,2.41011241]
[1748843050531,0.1163,2489.8,2489.4,2.41017167]
[1748843050922,2.52614229,2489.8,2489.3,2.41026257]
[1748843052162,4.088,2489.7,2489.3,2.41026257]
[1748843053270,4.088,2489.7,2489.4,2.41020378]
[1748843053827,4.088,2489.7,2489.5,2.41011938]
[1748843055965,4.088,2489.7,2489.4,2.41017599]
[1748843056525,4.088,2489.7,2489.5,2.4101083]
[1748843056824,4.088,2489.7,2489.4,2.41017125]
[1748843057043,4.088,2489.7,2489.4,2.41021932]
[1748843057723,4.088,2489.7,2489.5,2.41011856]
[1748843057929,4.088,2489.7,2489.3,2.4103125]
[1748843058330,4.088,2489.7,2489.5,2.4101063]
[1748843058730,8.1163,2489.6,2489.1,3.23214475]
[1748843059050,8.1163,2489.6,2489.2,2.41040835]
[1748843059562,8.1163,2489.6,2489.1,3.23217946]
[1748843059739,10.94744562,2489.6,2489.1,0.82171627]
[1748843059938,1.54558756,2489.5,2489.1,0.82171627]
[1748843061572,3.95571896,2489.5,2489.1,0.82171627]
[1748843061771,1.54558756,2489.5,2489.1,0.82171627]
[1748843062474,3.95571697,2489.5,2489.1,0.82171627]
[1748843062776,0.1163,2489.2,2489.1,0.82171627]
[1748843062990,13.3578586,2489.2,2489.1,0.82171627]
[1748843063140,15.34347716,2489.2,2489.1,0.82171627]
[1748843066983,15.75300302,2489.2,2489.1,0.82171627]
[1748843073798,16.30300302,2489.2,2489.1,0.82171627]
[1748843073997,16.68621407,2489.2,2489.1,0.82171627]
[1748843076023,16.68608011,2489.2,2489.1,0.82171627]
[1748843080541,16.68597252,2489.2,2489.1,0.82171627]
[1748843084050,19.09597252,2489.2,2489.1,0.82171627]
[1748843084250,16.68597252,2489.2,2489.1,0.82171627]
[1748843084554,20.77397252,2489.2,2489.1,0.82171627]
[1748843084951,20.77405823,2489.2,2489.1,0.82171627]
[1748843088971,21.83005823,2489.2,2489.1,0.82171627]
[1748843089471,21.83048264,2489.2,2489.1,0.82171627]
[1748843091780,17.74248264,2489.2,2489.1,0.82171627]
[1748843091963,21.83048264,2489.2,2489.1,0.82171627]
[1748843093682,21.83068474,2489.2,2489.1,0.82171627]
[1748843095181,22.31028689,2489.2,2489.1,0.82171627]
[1748843096186,22.31028689,2489.2,2488.2,0.7583]
[1748843096187,8.55,2489.1,2488.2,0.7583]
[1748843096478,13.24252734,2488.2,2488.1,0.01]
[1748843096646,17.33052734,2488.2,2488.1,0.01]
[1748843097044,18.38024162,2488.2,2488.1,0.01]
[1748843097777,17.99682734,2488.2,2488.1,0.01]
[1748843097947,20.42061464,2488.2,2488.1,0.01]
[1748843100362,23.25176026,2488.2,2488.1,0.01]
[1748843100746,20.42061464,2488.2,2488.1,0.01]
[1748843100945,23.73047903,2488.2,2488.1,0.01]
[1748843101178,23.72912853,2488.2,2488.1,0.01]
[1748843101386,8.55,2488.1,2487.2,0.7536]
[1748843101559,8.55,2488.1,2487.1,0.01]
[1748843101560,8.0,2487.2,2487.1,0.01]
[1748843101745,10.41235123,2487.2,2487.1,0.01]
[1748843101947,10.41235123,2487.2,2485.6,0.025]
[1748843101948,0.1163,2486.6,2485.6,0.025]
[1748843102152,2.53049546,2485.3,2484.9,0.005]
[1748843102351,0.1163,2485.3,2484.9,0.005]
[1748843102594,9.40043823,2485.2,2484.9,0.005]
[1748843102900,17.63382686,2485.2,2484.4,2.38006421]
[1748843103077,9.51277297,2485.2,2484.6,1.41286237]
[1748843103250,9.51277297,2485.2,2484.3,2.41510774]
[1748843103251,8.55,2485.1,2484.3,2.41510774]
[1748843103455,5.47340744,2485.5,2484.8,2.41462176]
[1748843103750,5.47340744,2485.5,2484.7,0.802]
[1748843103751,0.39391535,2485.5,2484.7,0.802]
[1748843103948,14.08287647,2485.6,2484.7,0.802]
[1748843104158,2.41413074,2485.4,2484.7,0.802]
[1748843104457,2.41413074,2485.4,2484.1,0.01]
[1748843104458,1.97960842,2485.4,2484.1,0.7881]
[1748843104663,8.0,2485.2,2484.1,0.7881]
[1748843104982,2.41448692,2485.0,2484.9,0.7781]
[1748843105189,2.41457005,2485.0,2484.3,2.41512741]
[1748843105394,2.41457005,2485.0,2484.2,0.7781]
[1748843105395,2.41458408,2484.9,2484.2,0.7781]
[1748843105678,4.213,2484.9,2484.3,2.41516725]
[1748843105883,4.212,2484.8,2484.3,0.32032672]
[1748843106089,13.47340744,2485.1,2484.5,2.41493633]
[1748843106283,13.47340744,2485.1,2484.6,2.41478977]
[1748843106284,4.221,2485.1,2484.6,2.41478977]
[1748843106461,0.40522643,2485.5,2484.7,0.7823]
[1748843106664,8.0,2485.3,2484.9,2.4145596]
[1748843106968,4.221,2485.5,2485.0,2.4144244]
[1748843107170,6.63501325,2485.5,2484.9,2.41455037]
[1748843107372,5.36612626,2485.5,2484.7,0.7823]
[1748843107687,5.36612626,2485.5,2484.9,2.41451857]
[1748843107987,6.63616148,2485.4,2484.7,3.19706059]
[1748843108190,2.41419791,2485.3,2484.7,3.19706059]
[1748843108391,6.63612886,2485.4,2484.8,2.41468007]
[1748843108690,6.63612886,2485.4,2484.7,0.7823]
[1748843108691,7.88776864,2485.2,2484.7,0.7823]
[1748843108894,6.12432081,2485.4,2484.7,3.19699957]
[1748843109194,12.44500479,2485.4,2484.7,3.19706706]
[1748843109359,12.10954124,2485.4,2484.7,3.19706706]
[1748843109553,9.69540744,2485.4,2484.7,0.7823]
[1748843109753,5.47340744,2485.1,2484.7,0.7823]
[1748843109954,8.55,2485.3,2484.7,0.7823]
[1748843110182,10.73046985,2485.3,2484.7,0.7823]
[1748843110358,10.18046985,2485.3,2484.7,3.19704245]
[1748843110572,12.59467622,2485.3,2484.7,3.19704245]
[1748843110796,10.18046985,2485.3,2484.8,2.41466324]
[1748843111135,12.59466871,2485.3,2484.7,0.7823]
[1748843111294,4.64337852,2485.2,2484.7,0.7823]
[1748843111461,2.22900762,2485.2,2484.7,3.19707637]
[1748843111655,8.33546355,2485.3,2484.9,2.41449856]
[1748843111966,12.55746355,2485.3,2484.9,2.41450197]
[1748843112363,8.33546355,2485.3,2484.9,2.41450197]
[1748843112728,8.0,2485.3,2484.8,2.41464589]
[1748843113007,10.4142089,2485.3,2484.7,3.19704247]
[1748843113183,4.42522098,2485.2,2484.7,0.7823]
[1748843113503,2.01086163,2485.2,2484.7,3.19707238]
[1748843113711,2.01086163,2485.2,2484.7,0.7823]
[1748843113909,7.88785868,2485.1,2484.7,0.7823]
[1748843114069,0.98987203,2485.0,2484.7,0.7823]
[1748843114396,2.41458508,2484.9,2484.4,3.23763946]
[1748843114597,0.98987203,2485.0,2484.4,3.23763946]
[1748843114801,2.41464523,2484.9,2484.4,0.8226]
[1748843115193,4.219,2484.8,2484.4,0.8226]
[1748843115388,4.98135173,2484.8,2484.4,0.8226]
[1748843117307,8.0,2484.7,2484.4,0.8226]
[1748843117873,8.0,2484.7,2484.2,2.41525351]
[1748843118113,8.0,2484.7,2484.1,0.7861]
[1748843118416,2.01086163,2485.2,2484.8,0.7568]
[1748843118703,8.0,2485.3,2484.8,0.7568]
[1748843118704,6.63145371,2485.1,2484.8,0.7568]
[1748843119525,8.0,2485.3,2484.8,3.17143928]
[1748843119675,4.215,2485.1,2484.9,2.41457003]
[1748843119874,4.215,2485.1,2484.8,0.7568]
[1748843120098,5.67792356,2485.1,2484.8,0.7568]
[1748843120613,1.46292356,2485.1,2484.8,0.7568]
[1748843120776,9.46292356,2485.1,2484.8,0.7568]
[1748843121281,0.39573366,2485.5,2484.8,0.7568]
[1748843121481,4.216,2485.4,2484.9,2.41452976]
[1748843121823,3.1431818,2485.5,2484.8,0.7568]
[1748843121981,8.0,2485.3,2485.0,2.41443641]
[1748843122496,8.0,2485.3,2484.9,2.41453953]
[1748843122708,2.74950914,2485.5,2484.8,0.7568]
[1748843122887,8.51634406,2485.4,2484.8,3.17146722]
[1748843123088,8.51634406,2485.4,2485.1,2.41436446]
[1748843123304,0.33546355,2485.5,2485.2,2.41428892]
[1748843123608,0.33546355,2485.5,2485.4,2.41409833]
[1748843124518,0.33546355,2485.5,2485.3,3.23067673]
[1748843124722,0.33546355,2485.5,2485.3,0.8165]
[1748843124875,5.47340744,2485.4,2485.0,0.8153]
[1748843125079,6.53709459,2485.4,2485.0,3.22977821]
[1748843125280,6.53709459,2485.4,2485.0,0.8153]
[1748843125506,8.95119677,2485.4,2485.0,0.8153]
[1748843125706,6.53709459,2485.4,2485.0,0.8153]
[1748843125892,6.53709459,2485.4,2485.0,3.22978179]
[1748843126094,0.37974009,2485.3,2485.0,3.22978179]
[1748843126292,6.53709459,2485.4,2485.0,0.8153]
[1748843126494,0.3797163,2485.3,2485.0,0.8153]
[1748843126690,6.53709459,2485.4,2485.0,3.2297626]
[1748843127019,0.37978046,2485.3,2485.0,3.2297626]
[1748843127183,0.37978046,2485.2,2485.0,0.8153]
[1748843127380,6.53709459,2485.4,2485.0,0.8153]
[1748843127583,0.38031778,2485.3,2485.0,0.8153]
[1748843127887,6.53709459,2485.4,2485.0,0.8153]
[1748843127888,0.38031778,2485.2,2485.0,0.8153]
[1748843128083,0.38103202,2485.1,2485.0,3.22972587]
[1748843128613,0.38103202,2485.1,2485.0,0.8153]
[1748843129197,0.38103202,2485.1,2485.0,3.22978692]
[1748843129397,0.38103202,2485.1,2485.0,0.8153]
[1748843129613,0.85479368,2485.1,2485.0,0.8153]
[1748843129816,0.38103202,2485.1,2485.0,0.8153]
[1748843130417,0.3819705,2485.1,2485.0,0.8153]
[1748843130624,6.66020883,2485.1,2484.7,0.8004]
[1748843130819,0.3819705,2485.0,2484.7,0.8004]
[1748843130984,0.3819705,2484.9,2484.7,0.8004]
[1748843131187,0.3819705,2484.8,2484.7,3.21517844]
[1748843131814,0.3819705,2484.8,2484.7,0.8004]
[1748843132203,0.3819705,2484.8,2484.7,3.21517844]
[1748843133028,0.3819705,2484.8,2484.7,3.77818331]
[1748843134287,0.63854622,2485.3,2485.2,3.16759261]